[Event "*** Titled Tuesday Blitz"]
[Site "Chess.com"]
[Date "2020.05.19"]
[Round "1"]
[White "Hippotaner"]
[Black "SamuelGhimpu2003"]
[Result "1/2-1/2"]
[WhiteElo "2317"]
[BlackElo "2596"]
[TimeControl "180+1"]
[EndTime "12:10:56 PDT"]
[Termination "Game drawn by 50-move rule"]

1. e4 {[%clk 0:02:59.8]} 1... e6 {[%clk 0:02:59]} 2. d3 {[%clk 0:02:55.8]} 2...
d5 {[%clk 0:02:59.9]} 3. Nd2 {[%clk 0:02:55.4]} 3... Nf6 {[%clk 0:02:59.9]} 4.
Ngf3 {[%clk 0:02:55.3]} 4... c5 {[%clk 0:03:00.3]} 5. g3 {[%clk 0:02:55.2]} 5...
Nc6 {[%clk 0:03:01]} 6. Bg2 {[%clk 0:02:55.6]} 6... Be7 {[%clk 0:03:01.8]} 7.
O-O {[%clk 0:02:55.8]} 7... O-O {[%clk 0:03:02.4]} 8. Re1 {[%clk 0:02:56.3]}
8... b5 {[%clk 0:03:02.1]} 9. e5 {[%clk 0:02:56.5]} 9... Nd7 {[%clk 0:03:02.5]}
10. Qe2 {[%clk 0:02:57]} 10... Qc7 {[%clk 0:03:01.5]} 11. Nf1 {[%clk 0:02:56.1]}
11... Re8 {[%clk 0:03:00.9]} 12. h4 {[%clk 0:02:56.2]} 12... a5 {[%clk
0:03:00.9]} 13. Bf4 {[%clk 0:02:56.3]} 13... a4 {[%clk 0:03:00.7]} 14. Ne3
{[%clk 0:02:56.3]} 14... Bb7 {[%clk 0:02:21.9]} 15. Nxd5 {[%clk 0:02:47.4]}
15... exd5 {[%clk 0:02:22.8]} 16. e6 {[%clk 0:02:46.5]} 16... Qd8 {[%clk
0:02:23.2]} 17. exf7+ {[%clk 0:02:45.9]} 17... Kxf7 {[%clk 0:02:24.1]} 18. Qe6+
{[%clk 0:02:45]} 18... Kf8 {[%clk 0:02:24.1]} 19. Ng5 {[%clk 0:01:44.6]} 19...
Bxg5 {[%clk 0:02:23.5]} 20. Bd6+ {[%clk 0:01:44.6]} 20... Ne7 {[%clk 0:02:19.8]}
21. hxg5 {[%clk 0:01:40.3]} 21... Ra6 {[%clk 0:02:11.9]} 22. Re3 {[%clk
0:01:20.1]} 22... Rxd6 {[%clk 0:01:51.1]} 23. Qxd6 {[%clk 0:01:19.6]} 23... Nb6
{[%clk 0:01:51.7]} 24. Qxc5 {[%clk 0:01:17.1]} 24... d4 {[%clk 0:01:51.8]} 25.
Re6 {[%clk 0:01:13.1]} 25... Bxg2 {[%clk 0:01:49.1]} 26. Kxg2 {[%clk 0:01:13]}
26... Qd5+ {[%clk 0:01:44.2]} 27. Qxd5 {[%clk 0:01:13]} 27... Nbxd5 {[%clk
0:01:45.1]} 28. Rae1 {[%clk 0:01:11]} 28... Rc8 {[%clk 0:01:41.1]} 29. R1e2
{[%clk 0:01:08.8]} 29... b4 {[%clk 0:01:36.3]} 30. Ra6 {[%clk 0:00:39]} 30... b3
{[%clk 0:01:15.4]} 31. cxb3 {[%clk 0:00:38.2]} 31... axb3 {[%clk 0:01:16.3]} 32.
axb3 {[%clk 0:00:38.1]} 32... Nb4 {[%clk 0:01:16.8]} 33. Rd6 {[%clk 0:00:35.6]}
33... Nf5 {[%clk 0:01:11.4]} 34. Rd7 {[%clk 0:00:30.5]} 34... Nxd3 {[%clk
0:01:10]} 35. g4 {[%clk 0:00:30.9]} 35... Nf4+ {[%clk 0:01:07.8]} 36. Kf3 {[%clk
0:00:28.5]} 36... Nxe2 {[%clk 0:01:08.7]} 37. gxf5 {[%clk 0:00:25]} 37... Nc1
{[%clk 0:01:09.1]} 38. Rxd4 {[%clk 0:00:23.2]} 38... Nxb3 {[%clk 0:01:09.4]} 39.
Rd3 {[%clk 0:00:20.3]} 39... Rb8 {[%clk 0:01:06.8]} 40. f6 {[%clk 0:00:20.1]}
40... gxf6 {[%clk 0:00:52.9]} 41. gxf6 {[%clk 0:00:21]} 41... Nc5 {[%clk
0:00:53.7]} 42. Rd5 {[%clk 0:00:20.5]} 42... Ne6 {[%clk 0:00:53.4]} 43. Ke4
{[%clk 0:00:19.9]} 43... Rxb2 {[%clk 0:00:50.7]} 44. Kf5 {[%clk 0:00:19.4]}
44... Rb6 {[%clk 0:00:39.5]} 45. Rd7 {[%clk 0:00:16.3]} 45... Kg8 {[%clk
0:00:39.7]} 46. Re7 {[%clk 0:00:15.9]} 46... Nf8 {[%clk 0:00:37.2]} 47. Re8
{[%clk 0:00:14.1]} 47... Rb5+ {[%clk 0:00:33.6]} 48. Kg4 {[%clk 0:00:14.3]}
48... Kf7 {[%clk 0:00:34.5]} 49. Ra8 {[%clk 0:00:12.7]} 49... Ng6 {[%clk
0:00:30.2]} 50. Ra7+ {[%clk 0:00:12.4]} 50... Kg8 {[%clk 0:00:30.3]} 51. Rg7+
{[%clk 0:00:12.4]} 51... Kh8 {[%clk 0:00:30.6]} 52. f4 {[%clk 0:00:12.3]} 52...
Rb4 {[%clk 0:00:26.3]} 53. Ra7 {[%clk 0:00:11.6]} 53... Kg8 {[%clk 0:00:20.2]}
54. Kg5 {[%clk 0:00:10.1]} 54... Nxf4 {[%clk 0:00:08.7]} 55. Ra8+ {[%clk
0:00:08]} 55... Kf7 {[%clk 0:00:08.4]} 56. Ra7+ {[%clk 0:00:08.4]} 56... Ke6
{[%clk 0:00:06]} 57. Re7+ {[%clk 0:00:08.4]} 57... Kd6 {[%clk 0:00:05.6]} 58.
Rxh7 {[%clk 0:00:08.1]} 58... Ne6+ {[%clk 0:00:06.5]} 59. Kg6 {[%clk 0:00:08]}
59... Rg4+ {[%clk 0:00:06.8]} 60. Kh5 {[%clk 0:00:08.3]} 60... Rg5+ {[%clk
0:00:06.3]} 61. Kh4 {[%clk 0:00:08.6]} 61... Rf5 {[%clk 0:00:07.2]} 62. f7
{[%clk 0:00:08.8]} 62... Ke7 {[%clk 0:00:06.8]} 63. Kg4 {[%clk 0:00:09.1]} 63...
Rf1 {[%clk 0:00:06.1]} 64. Kg3 {[%clk 0:00:09.2]} 64... Kf8 {[%clk 0:00:06.2]}
65. Kg2 {[%clk 0:00:09.2]} 65... Rf6 {[%clk 0:00:06.7]} 66. Kg3 {[%clk
0:00:09.5]} 66... Ng5 {[%clk 0:00:07]} 67. Rh8+ {[%clk 0:00:09.3]} 67... Kxf7
{[%clk 0:00:07.2]} 68. Ra8 {[%clk 0:00:10.1]} 68... Ne6 {[%clk 0:00:08.1]} 69.
Ra7+ {[%clk 0:00:10.4]} 69... Kg6 {[%clk 0:00:09]} 70. Ra6 {[%clk 0:00:10.7]}
70... Kf5 {[%clk 0:00:08.6]} 71. Ra5+ {[%clk 0:00:10.3]} 71... Ke4 {[%clk
0:00:09.3]} 72. Ra4+ {[%clk 0:00:10.5]} 72... Nd4 {[%clk 0:00:10.2]} 73. Rb4
{[%clk 0:00:10.2]} 73... Rg6+ {[%clk 0:00:11.1]} 74. Kf2 {[%clk 0:00:10]} 74...
Ke5 {[%clk 0:00:12]} 75. Rb8 {[%clk 0:00:09.4]} 75... Nf5 {[%clk 0:00:11.9]} 76.
Re8+ {[%clk 0:00:09.3]} 76... Kf4 {[%clk 0:00:12.8]} 77. Rf8 {[%clk 0:00:09.8]}
77... Ra6 {[%clk 0:00:13.1]} 78. Rf7 {[%clk 0:00:09.7]} 78... Ra2+ {[%clk
0:00:14]} 79. Ke1 {[%clk 0:00:09.9]} 79... Ke3 {[%clk 0:00:14.7]} 80. Kd1 {[%clk
0:00:10.3]} 80... Nd4 {[%clk 0:00:05.8]} 81. Re7+ {[%clk 0:00:10.3]} 81... Kd3
{[%clk 0:00:06.7]} 82. Ke1 {[%clk 0:00:10.3]} 82... Nf3+ {[%clk 0:00:06.5]} 83.
Kf1 {[%clk 0:00:09.4]} 83... Ng5 {[%clk 0:00:04.8]} 84. Rd7+ {[%clk 0:00:09.3]}
84... Ke3 {[%clk 0:00:05.4]} 85. Re7+ {[%clk 0:00:09.5]} 85... Kf3 {[%clk
0:00:04.7]} 86. Rg7 {[%clk 0:00:08.1]} 86... Ne4 {[%clk 0:00:05.6]} 87. Rf7+
{[%clk 0:00:07.5]} 87... Kg3 {[%clk 0:00:03.5]} 88. Rg7+ {[%clk 0:00:07.1]}
88... Kf3 {[%clk 0:00:03.6]} 89. Rf7+ {[%clk 0:00:07.4]} 89... Ke3 {[%clk
0:00:04.5]} 90. Kg1 {[%clk 0:00:06.4]} 90... Ra1+ {[%clk 0:00:04.9]} 91. Kg2
{[%clk 0:00:06.8]} 91... Ra6 {[%clk 0:00:05]} 92. Re7 {[%clk 0:00:06.5]} 92...
Rg6+ {[%clk 0:00:05.1]} 93. Kf1 {[%clk 0:00:06.7]} 93... Kf3 {[%clk 0:00:06]}
94. Rf7+ {[%clk 0:00:06.5]} 94... Ke3 {[%clk 0:00:06.9]} 95. Re7 {[%clk
0:00:06.7]} 95... Rh6 {[%clk 0:00:07.8]} 96. Kg2 {[%clk 0:00:06.2]} 96... Kf4
{[%clk 0:00:07.3]} 97. Rf7+ {[%clk 0:00:05.8]} 97... Kg4 {[%clk 0:00:08.2]} 98.
Rg7+ {[%clk 0:00:05.8]} 98... Ng5 {[%clk 0:00:09.1]} 99. Kf2 {[%clk 0:00:05.4]}
99... Ra6 {[%clk 0:00:05.7]} 100. Ke3 {[%clk 0:00:05.2]} 100... Ra3+ {[%clk
0:00:04.5]} 101. Kd4 {[%clk 0:00:05.4]} 101... Kf5 {[%clk 0:00:05.4]} 102. Kc4
{[%clk 0:00:05]} 102... Ne6 {[%clk 0:00:03.8]} 103. Rf7+ {[%clk 0:00:04.7]}
103... Ke5 {[%clk 0:00:03.6]} 104. Rf1 {[%clk 0:00:04.2]} 104... Re3 {[%clk
0:00:04.1]} 105. Kb4 {[%clk 0:00:03.2]} 105... Re4+ {[%clk 0:00:05]} 106. Kb5
{[%clk 0:00:02.6]} 106... Kd5 {[%clk 0:00:05.9]} 107. Kb6 {[%clk 0:00:02.7]}
107... Nd4 {[%clk 0:00:06.8]} 108. Kb7 {[%clk 0:00:03.6]} 108... Re6 {[%clk
0:00:07.4]} 109. Rh1 {[%clk 0:00:04]} 109... Re7+ {[%clk 0:00:06.5]} 110. Kc8
{[%clk 0:00:03.5]} 110... Kd6 {[%clk 0:00:05]} 111. Rd1 {[%clk 0:00:03.6]}
111... Re8+ {[%clk 0:00:04.4]} 112. Kb7 {[%clk 0:00:03.2]} 112... Kc5 {[%clk
0:00:05.3]} 113. Kc7 {[%clk 0:00:03.2]} 113... Kd5 {[%clk 0:00:06.2]} 114. Kd7
{[%clk 0:00:03.3]} 114... Rh8 {[%clk 0:00:06.5]} 115. Rd2 {[%clk 0:00:02.5]}
115... Rh7+ {[%clk 0:00:07.4]} 116. Ke8 {[%clk 0:00:02.5]} 116... Ke6 {[%clk
0:00:07.5]} 117. Kf8 {[%clk 0:00:02.8]} 117... Nf5 {[%clk 0:00:06.1]} 1/2-1/2

[Event "*** Titled Tuesday Blitz"]
[Site "Chess.com"]
[Date "2020.05.19"]
[Round "2"]
[White "bmt011"]
[Black "Thee-Chessboy"]
[Result "0-1"]
[WhiteElo "2039"]
[BlackElo "2381"]
[TimeControl "180+1"]
[EndTime "12:13:48 PDT"]
[Termination "Thee-Chessboy won by resignation"]

1. d4 {[%clk 0:03:00.9]} 1... Nf6 {[%clk 0:02:59]} 2. Bf4 {[%clk 0:02:59.7]}
2... c5 {[%clk 0:02:58.1]} 3. c3 {[%clk 0:02:57.9]} 3... g6 {[%clk 0:02:56]} 4.
e3 {[%clk 0:02:56.1]} 4... Bg7 {[%clk 0:02:56.4]} 5. Nf3 {[%clk 0:02:56.2]} 5...
O-O {[%clk 0:02:56.8]} 6. h3 {[%clk 0:02:55.4]} 6... d5 {[%clk 0:02:56.8]} 7.
Bd3 {[%clk 0:02:53.3]} 7... Nc6 {[%clk 0:02:56.6]} 8. Nbd2 {[%clk 0:02:51.7]}
8... Nd7 {[%clk 0:02:56.6]} 9. Bb5 {[%clk 0:02:41.4]} 9... Qb6 {[%clk
0:02:54.1]} 10. Bxc6 {[%clk 0:02:17.9]} 10... bxc6 {[%clk 0:02:53.5]} 11. Qb3
{[%clk 0:02:14.7]} 11... Ba6 {[%clk 0:02:45.2]} 12. Qxb6 {[%clk 0:02:02.6]}
12... axb6 {[%clk 0:02:43.8]} 13. e4 {[%clk 0:01:52.8]} 13... dxe4 {[%clk
0:02:42]} 14. Nxe4 {[%clk 0:01:51.8]} 14... cxd4 {[%clk 0:02:41.9]} 15. Nxd4
{[%clk 0:01:48.4]} 15... e5 {[%clk 0:02:39.4]} 0-1

[Event "*** Titled Tuesday Blitz"]
[Site "Chess.com"]
[Date "2020.05.19"]
[Round "2"]
[White "giantslayer83"]
[Black "Aradej"]
[Result "1-0"]
[WhiteElo "2686"]
[BlackElo "2467"]
[TimeControl "180+1"]
[EndTime "12:13:51 PDT"]
[Termination "giantslayer83 won by resignation"]

1. d4 {[%clk 0:02:59.3]} 1... d6 {[%clk 0:02:59.3]} 2. Nf3 {[%clk 0:02:57]} 2...
Nf6 {[%clk 0:02:59.6]} 3. c4 {[%clk 0:02:56]} 3... c5 {[%clk 0:02:59.7]} 4. Nc3
{[%clk 0:02:55.5]} 4... g6 {[%clk 0:02:59.4]} 5. e4 {[%clk 0:02:54.9]} 5... cxd4
{[%clk 0:02:59.4]} 6. Nxd4 {[%clk 0:02:54.7]} 6... Bg7 {[%clk 0:02:59.9]} 7. Be2
{[%clk 0:02:55.1]} 7... O-O {[%clk 0:03:00]} 8. O-O {[%clk 0:02:54]} 8... Nc6
{[%clk 0:03:00.6]} 9. Be3 {[%clk 0:02:53.7]} 9... Nxd4 {[%clk 0:03:00.6]} 10.
Bxd4 {[%clk 0:02:53.8]} 10... Be6 {[%clk 0:03:00.7]} 11. Qd2 {[%clk 0:02:49.1]}
11... Qa5 {[%clk 0:02:59.6]} 12. Rfd1 {[%clk 0:02:46.9]} 12... Rfc8 {[%clk
0:03:00]} 13. b3 {[%clk 0:02:46.9]} 13... a6 {[%clk 0:02:59.6]} 14. f3 {[%clk
0:02:40.4]} 14... Nd7 {[%clk 0:02:46.4]} 15. Bxg7 {[%clk 0:02:23.2]} 15... Kxg7
{[%clk 0:02:46.2]} 16. Rac1 {[%clk 0:02:04.5]} 16... b5 {[%clk 0:02:37.8]} 17.
cxb5 {[%clk 0:02:03.2]} 17... axb5 {[%clk 0:02:37.2]} 18. Bxb5 {[%clk
0:02:01.7]} 18... Rxc3 {[%clk 0:02:31.8]} 19. Qxc3+ {[%clk 0:02:00.6]} 19...
Qxc3 {[%clk 0:02:27.1]} 20. Rxc3 {[%clk 0:02:01.5]} 20... Rxa2 {[%clk
0:02:26.8]} 21. Bxd7 {[%clk 0:02:00.4]} 21... Bxd7 {[%clk 0:02:26.3]} 22. Rc7
{[%clk 0:02:00.5]} 22... Be6 {[%clk 0:02:25.8]} 23. Rxe7 {[%clk 0:02:00.4]} 1-0

[Event "*** Titled Tuesday Blitz"]
[Site "Chess.com"]
[Date "2020.05.19"]
[Round "2"]
[White "PlotnikovPavel"]
[Black "tgpgoat"]
[Result "1-0"]
[WhiteElo "2484"]
[BlackElo "2050"]
[TimeControl "180+1"]
[EndTime "12:14:08 PDT"]
[Termination "PlotnikovPavel won by resignation"]

1. e4 {[%clk 0:03:00.9]} 1... c5 {[%clk 0:02:59.3]} 2. c3 {[%clk 0:03:01]} 2...
d5 {[%clk 0:02:59]} 3. exd5 {[%clk 0:03:01.1]} 3... Qxd5 {[%clk 0:02:59.3]} 4.
d4 {[%clk 0:03:00.9]} 4... e6 {[%clk 0:02:57.1]} 5. Nf3 {[%clk 0:03:01]} 5...
Nc6 {[%clk 0:02:57.1]} 6. Be3 {[%clk 0:03:01]} 6... cxd4 {[%clk 0:02:56.4]} 7.
Nxd4 {[%clk 0:03:00.1]} 7... Nxd4 {[%clk 0:02:55.4]} 8. Qxd4 {[%clk 0:03:00.1]}
8... Qxd4 {[%clk 0:02:55.2]} 9. Bxd4 {[%clk 0:03:01]} 9... Be7 {[%clk
0:02:54.7]} 10. Bxg7 {[%clk 0:02:58.5]} 10... Bf6 {[%clk 0:02:55]} 11. Bxh8
{[%clk 0:02:58.2]} 11... Bxh8 {[%clk 0:02:55.1]} 12. Nd2 {[%clk 0:02:56.6]}
12... Bd7 {[%clk 0:02:55.2]} 13. Bd3 {[%clk 0:02:51.8]} 13... Nf6 {[%clk
0:02:49.6]} 14. O-O-O {[%clk 0:02:47.7]} 14... Bc6 {[%clk 0:02:49.2]} 15. f3
{[%clk 0:02:47.2]} 15... O-O-O {[%clk 0:02:48]} 16. Ne4 {[%clk 0:02:46.2]} 16...
Nd5 {[%clk 0:02:46.4]} 17. g3 {[%clk 0:02:42.9]} 17... Bg7 {[%clk 0:02:42.5]}
18. Rhe1 {[%clk 0:02:36.6]} 18... Bh6+ {[%clk 0:02:42.1]} 19. f4 {[%clk
0:02:36.1]} 19... e5 {[%clk 0:02:42]} 20. Ng5 {[%clk 0:02:22.9]} 20... exf4
{[%clk 0:02:40.2]} 21. Nxf7 {[%clk 0:02:19.7]} 21... fxg3+ {[%clk 0:02:33.7]}
22. Nxh6 {[%clk 0:02:16.6]} 22... gxh2 {[%clk 0:02:30.2]} 23. Be4 {[%clk
0:02:12.4]} 23... Ne3 {[%clk 0:02:28.1]} 24. Rxd8+ {[%clk 0:01:54.1]} 24... Kxd8
{[%clk 0:02:20.6]} 25. Bxc6 {[%clk 0:01:53.5]} 25... bxc6 {[%clk 0:02:18.2]} 1-0

[Event "*** Titled Tuesday Blitz"]
[Site "Chess.com"]
[Date "2020.05.19"]
[Round "2"]
[White "gilbert_gm"]
[Black "Lucas_Tomiello"]
[Result "1-0"]
[WhiteElo "2597"]
[BlackElo "2192"]
[TimeControl "180+1"]
[EndTime "12:14:14 PDT"]
[Termination "gilbert_gm won by resignation"]

1. d4 {[%clk 0:03:00.9]} 1... Nf6 {[%clk 0:02:59.9]} 2. Nf3 {[%clk 0:02:59.6]}
2... g6 {[%clk 0:02:59.8]} 3. g3 {[%clk 0:02:58.4]} 3... Bg7 {[%clk 0:03:00.1]}
4. Bg2 {[%clk 0:02:58]} 4... O-O {[%clk 0:03:00.7]} 5. O-O {[%clk 0:02:57.4]}
5... d6 {[%clk 0:03:01.3]} 6. c4 {[%clk 0:02:56.9]} 6... a6 {[%clk 0:03:01.7]}
7. Nc3 {[%clk 0:02:56.4]} 7... Nc6 {[%clk 0:03:01.9]} 8. b3 {[%clk 0:02:54.6]}
8... Rb8 {[%clk 0:02:55.4]} 9. Bb2 {[%clk 0:02:53.7]} 9... b5 {[%clk 0:02:54.6]}
10. cxb5 {[%clk 0:02:54.6]} 10... axb5 {[%clk 0:02:55.5]} 11. Rc1 {[%clk
0:02:55.5]} 11... Bd7 {[%clk 0:02:56]} 12. d5 {[%clk 0:02:45.6]} 12... Na5
{[%clk 0:02:50.8]} 13. Nd4 {[%clk 0:02:44.4]} 13... e5 {[%clk 0:02:43.2]} 14.
dxe6 {[%clk 0:02:43.2]} 14... fxe6 {[%clk 0:02:42.8]} 15. Ncxb5 {[%clk
0:02:34.1]} 15... Bxb5 {[%clk 0:02:34.1]} 16. Nxe6 {[%clk 0:02:33.2]} 16... Qe7
{[%clk 0:02:28.1]} 17. Bxf6 {[%clk 0:02:21.2]} 17... Rxf6 {[%clk 0:02:17.4]} 18.
Rxc7 {[%clk 0:02:19.6]} 18... Rxe6 {[%clk 0:02:02.9]} 19. Rxe7 {[%clk
0:02:18.2]} 19... Rxe7 {[%clk 0:02:03.8]} 20. Qxd6 {[%clk 0:02:15.3]} 20... Bf8
{[%clk 0:01:43.9]} 21. Qxb8 {[%clk 0:02:14.6]} 1-0

[Event "*** Titled Tuesday Blitz"]
[Site "Chess.com"]
[Date "2020.05.19"]
[Round "2"]
[White "Lagmantr"]
[Black "noblerone"]
[Result "1-0"]
[WhiteElo "2679"]
[BlackElo "2462"]
[TimeControl "180+1"]
[EndTime "12:14:20 PDT"]
[Termination "Lagmantr won by resignation"]

1. e4 {[%clk 0:03:00.9]} 1... c5 {[%clk 0:02:57.4]} 2. Nf3 {[%clk 0:03:01]} 2...
e6 {[%clk 0:02:58]} 3. d4 {[%clk 0:03:01.4]} 3... cxd4 {[%clk 0:02:58.9]} 4.
Nxd4 {[%clk 0:03:02.3]} 4... Qb6 {[%clk 0:02:59.3]} 5. Nb3 {[%clk 0:03:01.4]}
5... Qc7 {[%clk 0:02:59.6]} 6. Be2 {[%clk 0:02:58.1]} 6... Bd6 {[%clk
0:02:53.5]} 7. c4 {[%clk 0:02:55]} 7... b6 {[%clk 0:02:46.8]} 8. Nc3 {[%clk
0:02:54.1]} 8... a6 {[%clk 0:02:47.2]} 9. Be3 {[%clk 0:02:36.8]} 9... Nf6 {[%clk
0:02:19.3]} 10. Qd4 {[%clk 0:02:33.6]} 10... Be5 {[%clk 0:01:45.9]} 11. Qxb6
{[%clk 0:02:33.4]} 11... Qxb6 {[%clk 0:01:40.8]} 12. Bxb6 {[%clk 0:02:34.3]}
12... Bxc3+ {[%clk 0:01:41.2]} 13. bxc3 {[%clk 0:02:35.2]} 13... Nxe4 {[%clk
0:01:41.8]} 14. Bf3 {[%clk 0:02:19.3]} 14... Bb7 {[%clk 0:01:41]} 15. Na5 {[%clk
0:02:17.6]} 1-0

[Event "*** Titled Tuesday Blitz"]
[Site "Chess.com"]
[Date "2020.05.19"]
[Round "2"]
[White "SlavenPastar"]
[Black "Quiet_Desperation"]
[Result "1-0"]
[WhiteElo "2389"]
[BlackElo "2067"]
[TimeControl "180+1"]
[EndTime "12:14:33 PDT"]
[Termination "SlavenPastar won by resignation"]

1. d4 {[%clk 0:02:55.7]} 1... Nf6 {[%clk 0:02:59.6]} 2. c4 {[%clk 0:02:54.9]}
2... e6 {[%clk 0:03:00]} 3. Nc3 {[%clk 0:02:55.4]} 3... Bb4 {[%clk 0:02:59.7]}
4. Qc2 {[%clk 0:02:53.3]} 4... Nc6 {[%clk 0:02:58.3]} 5. Nf3 {[%clk 0:02:51.6]}
5... O-O {[%clk 0:02:57.9]} 6. Bg5 {[%clk 0:02:51.9]} 6... d6 {[%clk 0:02:56.1]}
7. e4 {[%clk 0:02:50]} 7... h6 {[%clk 0:02:56.4]} 8. Bh4 {[%clk 0:02:49.7]} 8...
g5 {[%clk 0:02:56.5]} 9. Bg3 {[%clk 0:02:48.8]} 9... g4 {[%clk 0:02:56.9]} 10.
d5 {[%clk 0:02:46.6]} 10... exd5 {[%clk 0:02:51.7]} 11. cxd5 {[%clk 0:02:44]}
11... gxf3 {[%clk 0:02:10.5]} 12. dxc6 {[%clk 0:02:42.7]} 12... Bg4 {[%clk
0:02:09.5]} 13. cxb7 {[%clk 0:02:36.5]} 13... Rb8 {[%clk 0:02:08.6]} 14. O-O-O
{[%clk 0:02:22.1]} 14... Rxb7 {[%clk 0:01:45.1]} 15. Rg1 {[%clk 0:02:21.5]}
15... Kh8 {[%clk 0:01:26.8]} 16. Bh4 {[%clk 0:02:14.2]} 16... Qe7 {[%clk
0:01:18.6]} 17. Nd5 {[%clk 0:02:09.9]} 1-0

[Event "*** Titled Tuesday Blitz"]
[Site "Chess.com"]
[Date "2020.05.19"]
[Round "2"]
[White "GodDMuhammad"]
[Black "Zq1"]
[Result "0-1"]
[WhiteElo "2285"]
[BlackElo "2520"]
[TimeControl "180+1"]
[EndTime "12:14:36 PDT"]
[Termination "Zq1 won by resignation"]

1. f4 {[%clk 0:03:00.9]} 1... d5 {[%clk 0:02:58.9]} 2. Nf3 {[%clk 0:02:58.8]}
2... g6 {[%clk 0:02:58.4]} 3. g3 {[%clk 0:02:57.9]} 3... Bg7 {[%clk 0:02:58.4]}
4. Bg2 {[%clk 0:02:57.4]} 4... c5 {[%clk 0:02:56.1]} 5. d3 {[%clk 0:02:57.5]}
5... Nc6 {[%clk 0:02:53.9]} 6. c3 {[%clk 0:02:57.1]} 6... Nf6 {[%clk 0:02:52.6]}
7. Qc2 {[%clk 0:02:56.4]} 7... d4 {[%clk 0:02:51.5]} 8. e4 {[%clk 0:02:55.9]}
8... dxe3 {[%clk 0:02:51]} 9. Bxe3 {[%clk 0:02:55.7]} 9... Nd7 {[%clk
0:02:45.4]} 10. Nbd2 {[%clk 0:02:54.5]} 10... O-O {[%clk 0:02:44.2]} 11. h4
{[%clk 0:02:53.7]} 11... h5 {[%clk 0:02:41.9]} 12. Ng5 {[%clk 0:02:52.6]} 12...
Qc7 {[%clk 0:02:37.2]} 13. Nde4 {[%clk 0:02:50.4]} 13... b6 {[%clk 0:02:34]} 14.
O-O {[%clk 0:02:47]} 14... Nf6 {[%clk 0:02:33.1]} 15. Rae1 {[%clk 0:02:38.2]}
15... Ng4 {[%clk 0:02:28.1]} 16. Bc1 {[%clk 0:02:31.2]} 16... Bb7 {[%clk
0:02:26.5]} 17. f5 {[%clk 0:02:25.9]} 17... Nce5 {[%clk 0:02:19.6]} 18. fxg6
{[%clk 0:02:16.6]} 18... Nxg6 {[%clk 0:02:18.4]} 19. Bf4 {[%clk 0:02:10.7]}
19... e5 {[%clk 0:02:15.4]} 20. Bc1 {[%clk 0:02:05.8]} 20... Rae8 {[%clk
0:02:09.2]} 21. Bf3 {[%clk 0:01:48.6]} 21... f5 {[%clk 0:02:07]} 22. Nd2 {[%clk
0:01:42.1]} 22... e4 {[%clk 0:02:05.7]} 23. Bxg4 {[%clk 0:01:34.2]} 23... Qxg3+
{[%clk 0:02:03.7]} 0-1

[Event "*** Titled Tuesday Blitz"]
[Site "Chess.com"]
[Date "2020.05.19"]
[Round "2"]
[White "ViktoriyaTarasova"]
[Black "AminMolaei"]
[Result "0-1"]
[WhiteElo "2268"]
[BlackElo "2606"]
[TimeControl "180+1"]
[EndTime "12:14:42 PDT"]
[Termination "AminMolaei won by resignation"]

1. d4 {[%clk 0:03:00.9]} 1... e6 {[%clk 0:02:59.2]} 2. c4 {[%clk 0:03:00.2]}
2... b6 {[%clk 0:02:59.5]} 3. Nc3 {[%clk 0:02:59.1]} 3... Bb7 {[%clk 0:02:59.4]}
4. e4 {[%clk 0:02:59.7]} 4... Bb4 {[%clk 0:02:58.9]} 5. f3 {[%clk 0:02:58.1]}
5... f5 {[%clk 0:02:57.5]} 6. e5 {[%clk 0:02:55.9]} 6... Nh6 {[%clk 0:02:54.8]}
7. Bd3 {[%clk 0:02:50.5]} 7... Qh4+ {[%clk 0:02:50.7]} 8. g3 {[%clk 0:02:37.3]}
8... Qxd4 {[%clk 0:02:50.9]} 9. Ne2 {[%clk 0:02:37.7]} 9... Qxe5 {[%clk
0:02:29.8]} 10. Bf4 {[%clk 0:02:32.6]} 10... Bxc3+ {[%clk 0:02:06.1]} 11. bxc3
{[%clk 0:02:30.8]} 11... Qc5 {[%clk 0:02:05.8]} 12. Bxh6 {[%clk 0:02:26.8]}
12... gxh6 {[%clk 0:02:06.7]} 13. Qd2 {[%clk 0:02:27]} 13... Nc6 {[%clk
0:01:53.6]} 14. Qxh6 {[%clk 0:02:24.3]} 14... O-O-O {[%clk 0:01:50.6]} 15. Qd2
{[%clk 0:02:12.3]} 15... Ne5 {[%clk 0:01:44]} 16. Nd4 {[%clk 0:02:05.8]} 16...
Qxd4 {[%clk 0:01:38.8]} 17. cxd4 {[%clk 0:02:03]} 17... Nxf3+ {[%clk 0:01:39]}
18. Ke2 {[%clk 0:02:03.5]} 18... Nxd2 {[%clk 0:01:38.8]} 19. Kxd2 {[%clk
0:02:04.2]} 19... Bxh1 {[%clk 0:01:38.7]} 20. Rxh1 {[%clk 0:02:01.9]} 20... h5
{[%clk 0:01:39.1]} 0-1

[Event "*** Titled Tuesday Blitz"]
[Site "Chess.com"]
[Date "2020.05.19"]
[Round "2"]
[White "TurboSteen"]
[Black "dopolian"]
[Result "0-1"]
[WhiteElo "1976"]
[BlackElo "2366"]
[TimeControl "180+1"]
[EndTime "12:14:53 PDT"]
[Termination "dopolian won by resignation"]

1. e4 {[%clk 0:01:41.7]} 1... c5 {[%clk 0:02:47.1]} 2. Nc3 {[%clk 0:01:39.9]}
2... d6 {[%clk 0:02:45.6]} 3. f4 {[%clk 0:01:37.9]} 3... g6 {[%clk 0:02:43.8]}
4. Nf3 {[%clk 0:01:35.2]} 4... Bg7 {[%clk 0:02:43.1]} 5. Bc4 {[%clk 0:01:34.6]}
5... Nc6 {[%clk 0:02:39.7]} 6. O-O {[%clk 0:01:32.7]} 6... e6 {[%clk 0:02:36.9]}
7. d4 {[%clk 0:01:31]} 7... cxd4 {[%clk 0:02:35.3]} 8. Nb5 {[%clk 0:01:27.8]}
8... Nge7 {[%clk 0:02:17.8]} 9. Nfxd4 {[%clk 0:01:24.3]} 9... O-O {[%clk
0:02:10.6]} 10. Nxc6 {[%clk 0:01:22.1]} 10... Nxc6 {[%clk 0:02:08.4]} 11. Nxd6
{[%clk 0:01:20.4]} 11... Bd4+ {[%clk 0:02:06.5]} 12. Kh1 {[%clk 0:01:13.8]}
12... Qxd6 {[%clk 0:01:49.8]} 0-1